bitfinex-derivatives/quotes_SOLF0:USTF0_20240910
["timestamp","ask_amount","ask_price","bid_price","bid_amount"]
[1726011065531,4.1345,135.85,135.73,11.31]
[1726011065833,11.31,135.77,135.72,1.3507]
[1726011066030,11.31,135.77,135.71,15.05355139]
[1726011066230,4.1345,135.85,135.71,11.31]
[1726011066436,1.09645921,135.84,135.7,15.02861507]
[1726011066632,11.31,135.76,135.7,11.31]
[1726011066929,4.1345,135.85,135.72,11.31]
[1726011067228,11.31,135.79,135.74,11.31]
[1726011067925,11.31,135.79,135.74,14.9933]
[1726011068129,11.31,135.79,135.74,11.31]
[1726011068520,11.31,135.78,135.73,3.6834]
[1726011069330,11.31,135.78,135.72,14.9937]
[1726011069625,11.31,135.77,135.72,3.6837]
[1726011070527,4.1345,135.85,135.72,11.31]
[1726011070733,11.31,135.79,135.74,11.31]
[1726011071033,11.31,135.79,135.74,14.9931]
[1726011071426,4.1345,135.85,135.74,14.9931]
[1726011071628,11.31,135.79,135.74,14.9931]
[1726011071825,11.31,135.8,135.75,3.683]
[1726011074930,11.31,135.79,135.74,3.6832]
[1726011075833,11.31,135.79,135.73,14.9934]
[1726011076824,4.1345,135.85,135.72,17.7134]
[1726011077031,11.31,135.78,135.72,14.9937]
[1726011078030,11.31,135.75,135.68,2.8008]
[1726011078234,11.31,135.75,135.68,14.1108]
[1726011078926,11.31,135.74,135.69,3.6846]
[1726011081138,11.31,135.74,135.68,12.7091]
[1726011081342,11.31,135.72,135.67,18.75411119]
[1726011081838,11.31,135.72,135.67,3.75911119]
[1726011082034,11.31,135.71,135.66,14.9954]
[1726011082441,11.31,135.71,135.67,3.6852]
[1726011083142,11.31,135.71,135.66,3.6854]
[1726011083339,11.31,135.71,135.61,2.7326]
[1726011083340,11.31,135.71,135.65,11.31]
[1726011083738,1.376,135.77,135.68,14.9949]
[1726011083942,11.31,135.74,135.68,14.9949]
[1726011084843,11.31,135.73,135.68,3.6849]
[1726011085444,11.31,135.73,135.67,14.9951]
[1726011089638,11.31,135.71,135.67,14.9951]
[1726011090243,11.31,135.71,135.67,3.6851]
[1726011091549,11.31,135.71,135.66,3.6853]
[1726011094241,11.31,135.71,135.65,18.73224037]
[1726011095953,1.376,135.77,135.66,3.6853]
[1726011096255,11.31,135.71,135.66,3.6853]
[1726011096853,11.31,135.71,135.65,18.73224037]
[1726011097246,11.31,135.71,135.65,7.42224037]
[1726011097446,11.31,135.7,135.65,3.6856]
[1726011098852,1.376,135.77,135.64,15.01743034]
[1726011098853,1.376,135.77,135.66,3.6854]
[1726011099150,11.31,135.7,135.66,3.6854]
[1726011099354,11.31,135.7,135.67,3.6851]
[1726011102454,11.31,135.7,135.66,3.6853]
[1726011103249,1.376,135.77,135.67,11.31]
[1726011103549,11.31,135.74,135.67,11.31]
[1726011103757,11.31,135.74,135.69,3.6844]
[1726011104849,11.31,135.73,135.69,3.6844]
[1726011111562,11.31,135.73,135.7,3.6843]
[1726011111760,11.31,135.75,135.7,3.6843]
[1726011112262,1.376,135.77,135.71,11.31]
[1726011112462,12.686,135.77,135.71,11.31]
[1726011113563,12.686,135.77,135.71,14.994]
[1726011114559,12.686,135.77,135.71,3.684]
[1726011115262,11.31,135.76,135.71,3.684]
[1726011117259,11.31,135.76,135.7,11.31]
[1726011118164,11.31,135.76,135.71,3.6839]
[1726011119069,11.31,135.76,135.72,3.6838]
[1726011119666,11.31,135.76,135.71,3.684]
[1726011119866,11.31,135.76,135.71,7.43233551]
[1726011123875,11.31,135.73,135.66,14.011]
[1726011124680,11.31,135.73,135.69,3.6846]
[1726011124874,1.376,135.77,135.69,11.31]
[1726011125078,11.31,135.76,135.72,3.6836]
[1726011125285,11.31,135.76,135.72,7.38726084]
[1726011126186,11.31,135.76,135.72,3.6836]
[1726011126483,11.31,135.75,135.69,11.31]
[1726011127181,11.31,135.75,135.7,3.6843]
[1726011133278,11.31,135.74,135.69,3.6846]
[1726011133886,11.31,135.72,135.68,3.6848]
[1726011134283,11.31,135.72,135.69,3.6846]
[1726011135287,11.31,135.72,135.68,3.6848]
[1726011136285,1.376,135.77,135.68,3.6848]
[1726011136485,11.31,135.74,135.69,3.6846]
[1726011136687,11.31,135.74,135.67,11.31]
[1726011137693,11.31,135.74,135.68,3.6848]
[1726011141392,11.31,135.74,135.69,3.6846]
[1726011157921,11.31,135.72,135.65,1.3238]
[1726011158104,1.376,135.77,135.65,1.3238]
[1726011158307,1.376,135.77,135.64,3.70743034]
[1726011158308,11.31,135.7,135.64,3.70743034]
[1726011158612,11.31,135.68,135.63,11.31]
[1726011158806,11.31,135.68,135.64,3.64202962]
[1726011159007,11.31,135.68,135.64,7.32782962]
[1726011159207,11.31,135.69,135.64,3.64202962]
[1726011159913,11.31,135.69,135.65,3.6857]
[1726011161813,11.31,135.69,135.66,3.6854]
[1726011162004,11.31,135.71,135.66,3.6854]
[1726011162201,11.31,135.72,135.67,11.31]
[1726011162403,11.31,135.74,135.68,14.9947]
[1726011162603,11.31,135.75,135.68,11.31]
[1726011163414,11.31,135.75,135.69,3.6844]
[1726011165616,11.31,135.75,135.7,3.6843]
[1726011166920,11.31,135.72,135.68,3.6847]
[1726011167113,11.31,135.72,135.66,11.31]
[1726011167420,11.31,135.73,135.67,11.31]
[1726011167815,11.31,135.73,135.68,3.6848]
[1726011168616,11.31,135.73,135.69,3.6846]
[1726011169013,11.31,135.73,135.68,3.6847]
[1726011169615,11.31,135.73,135.67,18.75458249]
[1726011170213,11.31,135.73,135.67,7.44458249]
[1726011170414,11.31,135.73,135.67,18.75458249]
[1726011170716,11.31,135.73,135.68,3.6848]
[1726011172719,11.31,135.73,135.69,3.6845]
[1726011173318,11.31,135.73,135.67,15.06948249]
[1726011174221,11.31,135.73,135.68,3.6849]
[1726011175321,11.31,135.75,135.7,11.31]
[1726011177322,11.31,135.75,135.7,14.9942]
[1726011177722,1.376,135.77,135.71,3.6841]
[1726011177918,12.686,135.77,135.71,11.31]
[1726011178223,1.376,135.77,135.72,11.31]
[1726011179914,2.6638,135.78,135.74,11.31]
[1726011180117,11.31,135.82,135.77,11.31]
[1726011180516,11.31,135.82,135.78,3.6822]
[1726011180912,11.31,135.82,135.77,11.31]
[1726011181114,11.31,135.82,135.77,14.9924]
[1726011181332,2.736,135.84,135.74,14.99147656]
[1726011181333,11.31,135.8,135.74,14.99147656]
[1726011181620,11.31,135.8,135.74,11.31]
[1726011181826,11.31,135.8,135.75,3.6829]
[1726011187223,11.31,135.8,135.74,14.9931]
[1726011187930,1.3733,135.79,135.74,14.9931]
[1726011188832,1.3733,135.79,135.75,3.683]
[1726011190126,1.3733,135.79,135.74,14.9931]
[1726011191332,1.3733,135.79,135.74,3.6831]
[1726011191537,11.31,135.78,135.71,11.31]
[1726011191731,14.0411,135.78,135.71,11.31]
[1726011191935,14.0411,135.78,135.72,3.6837]
[1726011192632,14.0411,135.78,135.73,3.6835]
[1726011193833,2.7311,135.78,135.74,14.9933]
[1726011194631,2.7311,135.78,135.74,11.31]
[1726011194838,2.7311,135.78,135.73,3.6835]
[1726011195636,14.0411,135.78,135.72,14.9937]
[1726011198241,14.0411,135.78,135.72,3.6837]
[1726011199041,14.0411,135.78,135.72,14.9937]
[1726011199335,14.0411,135.78,135.73,3.6835]
[1726011200141,14.0411,135.78,135.72,14.9937]
[1726011202038,11.31,135.76,135.68,4.0234]
[1726011202340,11.31,135.75,135.69,11.31]
[1726011202840,11.31,135.76,135.7,11.31]
[1726011203246,14.0411,135.78,135.73,11.31]
[1726011203432,2.7311,135.78,135.73,11.31]
[1726011204036,11.31,135.77,135.73,11.31]
[1726011204439,11.31,135.77,135.72,3.6838]
[1726011205551,11.31,135.77,135.71,14.9939]
[1726011205764,2.7311,135.78,135.71,3.6839]
[1726011205765,11.31,135.76,135.71,3.6839]
[1726011206541,11.31,135.76,135.7,11.31]
[1726011206542,11.31,135.76,135.7,14.9943]
[1726011206845,11.31,135.76,135.7,11.31]
[1726011207044,11.31,135.75,135.69,11.31]
[1726011207244,11.31,135.75,135.69,14.9944]
[1726011208456,11.31,135.75,135.7,3.6843]
[1726011208855,11.31,135.75,135.69,11.31]
[1726011209054,11.31,135.75,135.69,14.9945]
[1726011211448,11.31,135.75,135.68,14.9948]
[1726011211649,11.31,135.73,135.68,14.9948]
[1726011212254,11.31,135.72,135.65,14.95507727]
[1726011213248,11.31,135.72,135.66,3.6854]
[1726011213449,11.31,135.72,135.65,14.95507727]
[1726011213644,11.31,135.72,135.66,11.31]
[1726011213847,11.31,135.72,135.66,14.9953]
[1726011214752,11.31,135.72,135.67,3.6852]
[1726011219767,11.31,135.72,135.68,3.6847]
[1726011219959,13.9618,135.73,135.68,14.9947]
[1726011222470,13.9618,135.73,135.67,3.685]
[1726011224458,11.31,135.72,135.67,3.685]
[1726011226978,2.6518,135.73,135.67,3.685]
[1726011227170,13.9618,135.73,135.67,3.685]
[1726011230976,11.31,135.7,135.66,3.6853]
[1726011231275,11.31,135.71,135.66,3.6853]
[1726011232271,11.31,135.71,135.67,3.6851]
[1726011235375,11.31,135.71,135.66,3.6853]
[1726011235871,11.31,135.71,135.65,14.95507727]
[1726011237383,11.31,135.71,135.67,3.6851]
[1726011237780,11.31,135.72,135.67,3.6851]
[1726011239975,11.31,135.71,135.67,3.6851]
[1726011241883,11.31,135.71,135.66,14.9953]
[1726011243785,11.31,135.71,135.65,7.33067727]
[1726011244081,11.31,135.7,135.65,3.64507727]
[1726011244282,11.31,135.7,135.63,15.2269]
[1726011244495,11.31,135.7,135.64,3.6858]
[1726011244673,11.31,135.7,135.65,3.7734945]
[1726011245483,11.31,135.7,135.64,3.6858]
[1726011245885,11.31,135.7,135.64,7.33546462]
[1726011249382,11.31,135.69,135.64,3.6858]
[1726011251093,11.31,135.7,135.65,14.9957]
[1726011252091,11.31,135.7,135.65,11.31]
[1726011252686,11.31,135.7,135.65,14.9957]
[1726011253092,11.31,135.7,135.63,15.04294525]
[1726011253796,11.31,135.7,135.64,3.6859]
[1726011261404,11.31,135.7,135.65,3.6857]
[1726011264403,11.31,135.69,135.65,3.6857]
[1726011265409,11.31,135.69,135.64,3.6859]
[1726011266701,11.31,135.67,135.63,7.41914525]
[1726011267199,11.31,135.66,135.62,3.6864]
[1726011267391,11.31,135.66,135.6,12.6207]
[1726011268189,11.31,135.66,135.61,3.6867]
[1726011268604,11.31,135.66,135.61,11.31]
[1726011268806,11.31,135.67,135.62,3.6865]
[1726011271605,11.31,135.67,135.63,3.6862]
[1726011271804,11.31,135.67,135.61,11.31]
[1726011272002,11.31,135.67,135.62,3.6864]
[1726011274808,11.31,135.67,135.61,3.6867]
[1726011275008,11.31,135.67,135.61,14.9967]
[1726011275509,11.31,135.66,135.6,14.997]
[1726011278911,11.31,135.63,135.58,3.6876]
[1726011279312,11.31,135.63,135.57,11.31]
[1726011279610,11.31,135.63,135.58,3.76133191]
[1726011279809,11.31,135.63,135.57,11.31]
[1726011280109,11.31,135.64,135.59,11.31]
[1726011283111,1.3461,135.68,135.58,14.9975]
[1726011283112,11.31,135.63,135.58,14.9975]
[1726011284202,11.31,135.63,135.58,11.31]
[1726011290017,11.31,135.63,135.57,3.6878]
[1726011290219,11.31,135.62,135.57,3.6878]
[1726011291015,11.31,135.62,135.56,14.9981]
[1726011291409,1.3766,135.66,135.55,3.77165613]
[1726011291410,11.31,135.59,135.55,3.77165613]
[1726011291605,11.31,135.59,135.53,11.31]
[1726011291810,11.31,135.59,135.54,3.6886]
[1726011293316,11.31,135.58,135.53,3.66351969]
[1726011293511,11.31,135.58,135.52,11.31]
[1726011294108,11.31,135.58,135.53,7.36557556]
[1726011297611,11.31,135.57,135.53,3.67677556]
[1726011297817,11.31,135.57,135.51,11.31]
[1726011298021,11.31,135.57,135.52,3.67677556]
[1726011298415,11.31,135.55,135.5,3.6897]
[1726011298607,11.31,135.55,135.5,14.9997]
[1726011299115,11.31,135.55,135.5,11.31]
[1726011299418,11.31,135.56,135.5,11.31]
[1726011299621,11.31,135.56,135.5,14.9996]
[1726011300318,1.4032,135.6,135.53,11.31]
[1726011300618,11.31,135.58,135.53,11.31]
[1726011301013,11.31,135.58,135.52,14.98500553]
[1726011301209,11.31,135.58,135.52,18.67420553]
[1726011301618,11.31,135.57,135.46,2.5909]
[1726011301821,11.31,135.57,135.5,14.9996]
[1726011302721,11.31,135.55,135.5,14.9996]
[1726011303022,11.31,135.55,135.51,3.6895]
[1726011303321,11.31,135.57,135.51,11.31]
[1726011303520,1.4032,135.6,135.53,11.31]
[1726011303926,12.7132,135.6,135.53,11.31]
[1726011304219,12.7132,135.6,135.53,14.92671452]
[1726011304617,1.4032,135.6,135.55,11.31]
[1726011304814,2.7559,135.61,135.55,11.31]
[1726011305121,224.0,135.7,135.56,11.31]
[1726011305122,11.31,135.63,135.56,11.31]
[1726011305720,4.0016,135.66,135.58,11.31]
[1726011305926,11.31,135.64,135.59,11.31]
[1726011306122,11.31,135.64,135.6,3.6869]
[1726011306419,11.31,135.65,135.58,3.62292231]
[1726011306621,11.31,135.64,135.57,11.31]
[1726011306820,11.31,135.64,135.58,3.6875]
[1726011307820,11.31,135.64,135.59,14.9973]
[1726011308022,11.31,135.65,135.59,11.31]
[1726011308220,4.0016,135.66,135.6,11.31]
[1726011308420,4.0016,135.66,135.61,11.31]
[1726011308822,15.3116,135.66,135.61,11.31]
[1726011309128,15.3116,135.66,135.6,11.31]
[1726011309314,11.31,135.65,135.58,11.31]
[1726011309927,11.31,135.64,135.58,11.31]
[1726011310221,11.31,135.64,135.58,14.9975]
[1726011312719,11.31,135.64,135.56,14.99094992]
[1726011312928,11.31,135.64,135.56,11.31]
[1726011313429,4.0016,135.66,135.59,11.31]
[1726011313430,11.31,135.65,135.59,11.31]
[1726011313926,11.31,135.65,135.59,14.9973]
[1726011314133,15.3116,135.66,135.6,11.31]
[1726011314524,15.3116,135.66,135.61,3.6867]
[1726011315228,2.7125,135.66,135.62,14.9965]
[1726011315729,2.7125,135.66,135.62,11.31]
[1726011316819,14.0225,135.66,135.61,3.6867]
[1726011321130,11.31,135.65,135.59,14.9971]
[1726011321636,12.6601,135.65,135.59,14.9971]
[1726011323130,12.6601,135.65,135.59,11.31]
[1726011323331,11.31,135.63,135.54,3.9356]
[1726011323526,11.31,135.63,135.57,11.31]
[1726011323728,11.31,135.62,135.56,3.6881]
[1726011325832,11.31,135.6,135.55,14.9984]
[1726011326034,11.31,135.6,135.55,11.31]
[1726011326227,11.31,135.6,135.54,11.31]
[1726011326626,11.31,135.6,135.54,14.9985]
[1726011326825,11.31,135.6,135.54,11.31]
[1726011327031,11.31,135.6,135.55,11.31]
[1726011327231,11.31,135.6,135.55,14.9982]
[1726011327435,14.0066,135.61,135.55,11.31]
[1726011327634,14.0066,135.61,135.56,11.31]
[1726011327834,2.6966,135.61,135.56,11.31]
[1726011328040,11.31,135.63,135.58,11.31]
[1726011328944,11.31,135.64,135.58,11.31]
[1726011329234,11.31,135.64,135.58,14.9976]
[1726011329439,11.31,135.64,135.58,11.31]
[1726011330038,11.31,135.64,135.58,14.9975]
[1726011330643,12.6601,135.65,135.59,14.9973]
[1726011330837,12.6601,135.65,135.59,11.31]
[1726011331335,12.6601,135.65,135.59,14.9972]
[1726011332144,1.3501,135.65,135.61,14.9968]
[1726011332343,2.6754,135.66,135.61,14.9968]
[1726011332739,2.6754,135.66,135.62,14.9963]
[1726011333230,2.6754,135.66,135.62,11.31]
[1726011335240,2.6754,135.66,135.61,3.6867]
[1726011335445,2.6754,135.66,135.61,14.9967]
[1726011336537,1.2861,135.66,135.63,11.31]
[1726011336734,116.56920418,135.67,135.63,11.31]
[1726011339248,116.56920418,135.67,135.63,14.9962]
[1726011339446,116.56920418,135.67,135.63,11.31]
[1726011339641,1.4103,135.69,135.65,14.9956]
[1726011339842,1.4103,135.69,135.65,11.31]
[1726011340038,1.4103,135.69,135.64,11.31]
[1726011340236,1.4103,135.69,135.64,14.996]
[1726011340440,1.4103,135.69,135.64,11.31]
[1726011341138,1.4103,135.69,135.61,11.31]
[1726011341139,11.31,135.67,135.61,11.31]
[1726011341544,11.31,135.67,135.61,14.9967]
[1726011341844,11.31,135.66,135.6,11.31]
[1726011342349,11.31,135.66,135.6,14.9969]
[1726011342950,11.31,135.66,135.61,3.6868]
[1726011343244,11.31,135.67,135.61,11.31]
[1726011343847,11.31,135.67,135.62,3.6864]
[1726011344646,11.31,135.67,135.61,14.9967]
[1726011345744,1.4103,135.69,135.6,14.997]
[1726011345745,11.31,135.66,135.6,14.997]
[1726011349555,11.31,135.62,135.56,1.2992]
[1726011349746,11.31,135.62,135.52,1.3844]
[1726011349947,11.31,135.6,135.54,11.31]
[1726011350843,11.31,135.6,135.54,14.9986]
[1726011351348,11.31,135.6,135.54,11.31]
[1726011351752,11.31,135.6,135.53,3.6889]
[1726011351950,11.31,135.6,135.53,14.9989]
[1726011352151,11.31,135.59,135.53,14.9989]
[1726011353950,11.31,135.59,135.53,11.31]
[1726011354351,11.31,135.59,135.52,16.3836]
[1726011355067,11.31,135.59,135.52,12.6944]
[1726011355349,11.31,135.59,135.52,11.31]
[1726011356151,11.31,135.59,135.52,14.9992]
[1726011357555,11.31,135.57,135.52,11.31]
[1726011358453,11.31,135.57,135.52,14.9992]
[1726011358647,11.31,135.59,135.52,14.9992]
[1726011359560,11.31,135.59,135.53,3.6889]
[1726011360847,11.31,135.59,135.52,14.9992]
[1726011361959,11.31,135.59,135.53,11.31]
[1726011362556,11.31,135.59,135.54,3.6887]
[1726011362758,6.18507358,135.64,135.53,11.31]
[1726011362953,11.31,135.61,135.54,11.31]
[1726011363161,11.31,135.61,135.55,3.6884]
[1726011364758,11.31,135.61,135.54,11.31]
[1726011364759,11.31,135.61,135.54,14.9986]
[1726011366755,11.31,135.61,135.55,3.6884]
[1726011370065,11.31,135.59,135.55,3.6884]
[1726011370274,11.31,135.59,135.54,14.9986]
[1726011370468,11.31,135.59,135.54,11.31]
[1726011370670,11.31,135.59,135.53,11.31]
[1726011371372,11.31,135.59,135.54,3.6887]
[1726011378880,11.31,135.59,135.49,1.2902]
[1726011379075,11.31,135.58,135.51,11.31]
[1726011379676,11.31,135.58,135.52,3.6891]
[1726011382182,11.31,135.58,135.52,14.9991]
[1726011383086,11.31,135.58,135.52,3.6891]
[1726011383683,11.31,135.58,135.52,7.46500806]
[1726011385991,11.31,135.58,135.53,14.999]
[1726011391278,116.61506751,135.63,135.54,3.6886]
[1726011391483,116.61506751,135.63,135.56,11.31]
[1726011391681,116.61506751,135.63,135.57,11.31]
[1726011391987,11.31,135.62,135.57,11.31]
[1726011393093,11.31,135.62,135.57,14.9978]
[1726011393281,116.61506751,135.63,135.58,11.31]
[1726011394297,116.61506751,135.63,135.59,3.6873]
[1726011395383,116.61506751,135.63,135.58,14.9976]
[1726011397190,116.61506751,135.63,135.57,3.6877]
[1726011397390,116.61506751,135.63,135.58,11.31]
[1726011397987,116.61506751,135.63,135.58,14.9976]
[1726011400103,116.61506751,135.63,135.58,3.6876]
[1726011400402,116.61506751,135.63,135.58,14.9976]
[1726011400998,11.31,135.62,135.57,3.6878]
[1726011401303,11.31,135.62,135.56,14.998]
[1726011401596,11.31,135.61,135.54,12.7032]
[1726011402000,11.31,135.61,135.55,3.6883]
[1726011403405,11.31,135.61,135.54,14.9986]
[1726011403801,11.31,135.61,135.55,3.6884]
[1726011407702,11.31,135.61,135.56,3.6882]
[1726011410312,11.31,135.61,135.55,3.6883]
[1726011411405,11.31,135.61,135.56,3.688]
[1726011416707,11.31,135.61,135.57,3.6878]
[1726011416907,116.61506751,135.63,135.57,14.9978]
[1726011417108,127.92506751,135.63,135.57,14.9978]
[1726011419211,11.31,135.6,135.55,3.6883]
[1726011419519,11.31,135.6,135.56,3.6879]
[1726011421021,11.31,135.6,135.55,14.9983]
[1726011423412,11.31,135.6,135.54,14.9987]
[1726011424116,11.31,135.6,135.54,18.63610317]
[1726011426013,116.61506751,135.63,135.55,11.31]
[1726011426218,2.5581,135.64,135.58,11.31]
[1726011426410,2.5581,135.64,135.59,11.31]
[1726011427310,13.8681,135.64,135.57,3.6878]
[1726011427511,13.8681,135.64,135.57,14.9978]
[1726011428713,11.31,135.61,135.55,11.31]
[1726011429120,11.31,135.61,135.55,3.6883]
[1726011429309,11.31,135.61,135.54,14.94740317]
[1726011429621,11.31,135.61,135.54,18.63600317]
[1726011429817,11.31,135.61,135.54,14.9986]
[1726011431621,11.31,135.61,135.55,3.6884]
[1726011436325,11.31,135.61,135.56,14.9981]
[1726011436921,2.5581,135.64,135.56,14.9981]
[1726011436922,11.31,135.62,135.56,14.9981]
[1726011437825,11.31,135.62,135.57,3.6879]
[1726011438323,11.31,135.62,135.56,14.998]
[1726011438621,11.31,135.61,135.56,11.31]
[1726011439015,11.31,135.61,135.57,3.6878]
[1726011443231,11.31,135.61,135.56,11.31]
[1726011444033,11.31,135.61,135.57,3.6878]
[1726011445725,11.31,135.62,135.57,3.6878]
[1726011446937,11.31,135.62,135.58,3.6875]
[1726011448435,2.5581,135.64,135.59,3.6873]
[1726011450237,2.5581,135.64,135.58,11.31]
[1726011450941,11.31,135.63,135.58,11.31]
[1726011451550,11.31,135.63,135.58,14.9976]
[1726011452238,11.31,135.63,135.54,4.0373]
[1726011452239,11.31,135.61,135.54,1.3477]
[1726011452537,11.31,135.61,135.55,11.31]
[1726011452935,11.31,135.61,135.55,14.9982]
[1726011454342,11.31,135.61,135.55,11.31]
[1726011454746,11.31,135.59,135.53,7.36321226]
[1726011454938,11.31,135.57,135.5,1.2788]
[1726011455135,11.31,135.54,135.46,1.2788]
[1726011455340,11.31,135.54,135.49,11.31]
[1726011455647,11.31,135.57,135.5,11.31]
[1726011455941,11.31,135.57,135.51,3.6894]
[1726011456242,1.4055,135.58,135.51,3.6894]
[1726011456546,11.31,135.57,135.51,3.6894]
[1726011458153,11.31,135.57,135.52,3.6893]
[1726011458440,12.7155,135.58,135.53,11.31]
[1726011458645,1.4055,135.58,135.53,11.31]
[1726011458843,1.4055,135.58,135.53,14.999]
[1726011459247,1.4055,135.58,135.54,11.31]
[1726011459545,1.3578,135.59,135.54,11.31]
[1726011460053,11.31,135.56,135.5,11.31]
[1726011460437,12.7192,135.58,135.51,14.91574085]
[1726011460642,12.7192,135.58,135.51,11.31]
[1726011461042,12.7192,135.58,135.52,3.6892]
[1726011462851,12.7192,135.58,135.51,18.74128311]
[1726011463546,12.7192,135.58,135.51,15.05188311]
[1726011464144,1.4092,135.58,135.53,11.31]
[1726011466142,12.7192,135.58,135.53,11.31]
[1726011467849,12.7192,135.58,135.53,14.999]
[1726011469251,12.7192,135.58,135.53,11.31]
[1726011471252,12.7192,135.58,135.52,3.6892]
[1726011471455,12.7192,135.58,135.51,7.43128311]
[1726011471456,11.31,135.56,135.51,7.43128311]
[1726011471755,11.31,135.56,135.51,3.6894]
[1726011472254,11.31,135.55,135.49,3.61617354]
[1726011472558,11.31,135.55,135.49,11.31]
[1726011472760,11.31,135.55,135.49,15.0379569]
[1726011473258,11.31,135.55,135.5,3.6897]
[1726011479569,11.31,135.57,135.51,3.6894]
[1726011483275,11.31,135.56,135.51,3.6894]
[1726011493075,1.4092,135.58,135.53,3.6889]
[1726011493270,1.4092,135.58,135.53,11.31]
[1726011493465,1.3578,135.59,135.53,11.31]
[1726011493673,1.3926,135.6,135.55,11.31]
[1726011495275,11.31,135.59,135.53,11.31]
[1726011495480,11.31,135.59,135.54,3.6885]
[1726011497879,12.7026,135.6,135.55,14.9984]
[1726011498085,12.7026,135.6,135.55,11.31]
[1726011499182,12.7026,135.6,135.55,14.9984]
[1726011510983,11.31,135.59,135.54,3.6886]
[1726011512097,11.31,135.59,135.55,3.6884]
[1726011512896,1.3926,135.6,135.56,3.6882]
[1726011515691,1.3926,135.6,135.55,3.6883]
[1726011516696,11.31,135.59,135.54,3.6886]
[1726011519303,11.31,135.59,135.53,18.61102543]
[1726011519503,11.31,135.59,135.53,3.6888]
[1726011519706,11.31,135.58,135.52,11.31]
[1726011520108,11.31,135.58,135.52,14.9991]
[1726011525009,1.3926,135.6,135.52,11.31]
[1726011525010,11.31,135.59,135.52,11.31]
[1726011526208,11.31,135.59,135.54,3.6887]
[1726011526513,1.3926,135.6,135.53,11.31]
[1726011526807,1.3926,135.6,135.55,14.9983]
[1726011530020,1.3926,135.6,135.56,3.6881]
[1726011538820,1.3926,135.6,135.55,14.9983]
[1726011540912,12.7026,135.6,135.56,3.6881]
[1726011543921,12.7026,135.6,135.55,14.9983]
[1726011544117,11.31,135.59,135.54,3.73081047]
[1726011544315,11.31,135.59,135.47,2.6372]
[1726011544516,11.31,135.59,135.53,3.6888]
[1726011544716,11.31,135.59,135.52,11.31]
[1726011545020,1.3926,135.6,135.55,11.31]
[1726011545218,1.3926,135.6,135.55,3.70997277]
[1726011545418,1.3926,135.6,135.54,11.31]
[1726011545719,1.3926,135.6,135.56,3.688]
[1726011547923,1.3926,135.6,135.57,3.6879]